Workbook

Sheet Ganze Liste
B1: Name | C1: M/W | D1: E/J/S | E1: BK
A2: 1 | B2: Davis Franz | C2: M | D2: E | E2: 1
A3: 2 | B3: Ebel Daniel | C3: M | D3: E | E3: 6
A4: 3 | B4: Jatho Robert | C4: M | D4: E | E4: 1
A5: 4 | B5: Blum Sandra | C5: W | D5: E | E5: 3
A6: 5 | B6: Kohler Sabine | C6: W | D6: E | E6: 2
A7: 6 | B7: Krück Bärbel | C7: W | D7: E | E7: 2
A8: 7 | B8: Dirks Ute Éloise | C8: W | D8: E | E8: 2
A9: 8 | B9: Geimer Charly | C9: M | D9: E | E9: 2
A10: 9 | B10: Voigt Bea | C10: W | D10: E | E10: 2
A11: 10 | B11: Rösch Frank | C11: M | D11: E | E11: 6
A12: 11 | B12: Harpain Sabrina | C12: W | D12: E | E12: 1
A13: 12 | B13: Kindinger Helmut | C13: M | D13: E | E13: 1
A14: 13 | B14: Schmitt Mareike | C14: W | D14: E | E14: 1
A15: 14 | B15: Herngreen Michael | C15: M | D15: E | E15: 2
A16: 15 | B16: Eggers Jan | C16: M | D16: E | E16: 2
A17: 16 | B17: Rogalewski Manfred | C17: M | D17: E | E17: 2
A18: 17 | B18: Klinken Thomas | C18: M | D18: E | E18: 2
A19: 18 | B19: Klinken Christine | C19: W | D19: E | E19: 3
A20: 19 | B20: Klinken Jannik | C20: M | D20: J | E20: 4
A21: 20 | B21: Klinken Ramona | C21: W | D21: J | E21: 3
A22: 21 | B22: Hebler David | C22: M | D22: E | E22: 6
A23: 22 | B23: Zander Heiko | C23: M | D23: E | E23: 1
A24: 23 | B24: Friend Stephanie | C24: W | D24: E | E24: 2
A25: 24 | B25: Meyer Herbert | C25: M | D25: E | E25: 2
A26: 25 | B26: Albert Klaus | C26: M | D26: E | E26: 3
A27: 26 | B27: Reissmann Rainer | C27: M | D27: E | E27: 3
A28: 27 | B28: Kiene Ralf | C28: M | D28: E | E28: 3
A29: 28 | B29: Kiene Fiona | C29: W | D29: S | E29: 4
A30: 29 | B30: Cuntz Andy | C30: M | D30: E | E30: 1
A31: 30 | B31: Möbus Torsten | C31: M | D31: E | E31: 1
A32: 31 | B32: Heß Thomas | C32: M | D32: E | E32: 3
A33: 32 | B33: Heß Alicia | C33: W | D33: J | E33: 3
A34: 33 | B34: Schwan Robert | C34: M | D34: E | E34: 2
A35: 34 | B35: Adel Herta | C35: W | D35: E | E35: 2
A36: 35 | B36: Frisch Andreas | C36: M | D36: E | E36: 3
A37: 36 | B37: Kümpfel Alfred | C37: M | D37: E | E37: 6
A38: 37 | B38: Fasshauer Günther | C38: M | D38: E | E38: 2
A39: 38 | B39: Christen Marco | C39: M | D39: E | E39: 3
A40: 39 | B40: Christen Claudia | C40: W | D40: E | E40: 3
A41: 40 | B41: Christen Max | C41: M | D41: J | E41: 4
A42: 41 | B42: Christen Hanna | C42: W | D42: S | E42: 3
A43: 42 | B43: Ebel Mathew | C43: M | D43: S | E43: 6
A44: 43 | B44: Ebel Manuela | C44: W | D44: E | E44: 3
A45: 44 | B45: Zahn Wolfgang | C45: M | D45: E | E45: 3
A46: 45 | B46: Macklé Gerd | C46: M | D46: E | E46: 3
A47: 46 | B47: Rauch Hartmut | C47: M | D47: E | E47: 3
A48: 47 | B48: Beier-Wille Katrin | C48: W | D48: E | E48: 3
A49: 48 | B49: Novotny Hans | C49: M | D49: E | E49: 1
A50: 49 | B50: Thiel verona | C50: W | D50: E | E50: 2
A51: 50 | B51: Denysiuk Daniel | C51: M | D51: E | E51: 2
A52: 51 | B52: Denysiuk Kristin | C52: W | D52: E | E52: 2
A53: 52 | B53: Neullens Andreas | C53: M | D53: E | E53: 3
A54: 53 | B54: Winkelmann Henry | C54: M | D54: E | E54: 6
A55: 54 | B55: Seibel Gaby | C55: W | D55: E | E55: 4
A56: 55 | B56: Seibel Jürgen | C56: M | D56: E | E56: 3
A57: 56 | B57: Schreck Benjamin | C57: M | D57: E | E57: 6
A58: 57 | B58: Schreck Hans-Dieter | C58: M | D58: E | E58: 3
A59: 58 | B59: Schreck Lara Marie | C59: W | D59: E | E59: 3
A60: 59 | B60: Bert Ralf | C60: M | D60: E | E60: 3
A61: 60 | B61: Bert Justin | C61: M | D61: J | E61: 6
A62: 61 | B62: Estl David | C62: M | D62: E | E62: 3
A63: 62 | B63: Estl Lilly | C63: W | D63: S | E63: 3
A64: 63 | B64: Dryba Florian | C64: M | D64: E | E64: 3
A65: 64 | B65: Dryba Lea | C65: W | D65: E | E65: 3
A66: 65 | B66: Harwarth Helmut | C66: M | D66: E | E66: 2
A67: 66 | B67: Helmus Jochen | C67: M | D67: W | E67: 2
A68: 67 | B68: Müller Angelika | C68: W | D68: E | E68: 6
A69: 68 | B69: Schackmann Norbert | C69: M | D69: E | E69: 4
A70: 69 | B70: Meinberg Jessica | C70: W | D70: J | E70: 3
A71: 70 | B71: Eckardt Christian | C71: M | D71: E | E71: 3
A72: 71 | B72: Eckardt Carola | C72: W | D72: E | E72: 3
A73: 72 | B73: Zielke Mike | C73: M | D73: E | E73: 1
A74: 73 | B74: Estor Stefan | C74: M | D74: E | E74: 1
A75: 74 | B75: Estor Arne | C75: M | D75: J | E75: 1
A76: 75 | B76: Külmer Lasse | C76: M | D76: S | E76: 3
A77: 76 | B77: Külmer Jens | C77: M | D77: E | E77: 3
A78: 77 | B78: Gleiser Christian | C78: M | D78: E | E78: 3
A79: 78 | B79: Kahl Stefanie | C79: W | D79: E | E79: 3
A80: 79 | B80: Jost Andreas | C80: M | D80: E | E80: 3
A81: 80 | B81: Tittl Stefanie | C81: W | D81: E | E81: 3
A82: 81 | B82: Mädler Sindy | C82: W | D82: E | E82: 3
A83: 82 | B83: Kircher Kevin | C83: M | D83: E | E83: 2
A84: 83 | B84: Dietzenbach Elke | C84: W | D84: E | E84: 2
A85: 84 | B85: Dietzenbach Arne | C85: M | D85: E | E85: 2
A86: 85 | B86: Felber Wolfgang | C86: M | D86: E | E86: 3
A87: 86 | B87: Felber Monika | C87: W | D87: E | E87: 3
A88: 87 | B88: May Richard | C88: M | D88: E | E88: 6
A89: 88 | B89: Kiebusch Ralf | C89: M | D89: E | E89: 3
A90: 89 | B90: Diehl Uwe | C90: M | D90: E | E90: 3
A91: 90 | B91: Schneider Andreas | C91: M | D91: E | E91: 3
A92: 91 | B92: Wiescher Roland | C92: M | D92: E | E92: 3
A93: 92 | B93: KrausThomas | C93: M | D93: E | E93: 6
A94: 93 | B94: Kraus Anja | C94: W | D94: E | E94: 4
A95: 94 | B95: Kraus Finlay | C95: M | D95: S | E95: 3
A96: 95 | B96: Kraus Mara | C96: W | D96: S | E96: 3
A97: 96 | B97: Leonie Theobald | C97: W | D97: S | E97: 3
A98: 97 | B98: Klasen Ralf | C98: M | D98: E | E98: 5
A99: 98 | B99: Klasen Silvia | C99: W | D99: E | E99: 4
A100: 99 | B100: Gernet Tamara | C100: W | D100: E | E100: 5
A101: 100 | B101: Hey Roland | C101: M | D101: E | E101: 3
A102: 101 | B102: Weller Thomas | C102: M | D102: E | E102: 6
A103: 102 | B103: Demski Bernd | C103: M | D103: E | E103: 6
A104: 103 | B104: Demski Brigitte | C104: W | D104: E | E104: 6
A105: 104 | B105: Holz Winfried | C105: M | D105: E | E105: 3
A106: 105 | B106: Tempel Andreas | C106: M | D106: E | E106: 1
A107: 106 | B107: Krause Gerald | C107: M | D107: E | E107: 4
A108: 107 | B108: Hofmann Marcus | C108: M | D108: E | E108: 3
A109: 108 | B109: Estl Anja | C109: W | D109: E | E109: 3
A110: 109 | B110: Buchmeyer Mike | C110: M | D110: E | E110: 1
A111: 110 | B111: Bügenbug Uwe | C111: M | D111: E | E111: 1
A112: 111 | B112: Roith Michael | C112: M | D112: E | E112: 1
A113: 112
A114: 113
A115: 114
A116: 115
A117: 116
A118: 117
A119: 118
A120: 119
A121: 120
A122: 121
A123: 122
A124: 123
A125: 124
A126: 125
A127: 126
A128: 127
A129: 128
A130: 129
A131: 130
A132: 131
A133: 132
A134: 133
A135: 134
A136: 135
A137: 136
A138: 137
A139: 138
A140: 139
A141: 140
A142: 141
A143: 142
A144: 143
A145: 144
A146: 145
A147: 146
A148: 147
A149: 148
A150: 149
A151: 150
A152: 151
A153: 152
A154: 153
A155: 154
A156: 155
A157: 156
A158: 157
A159: 158
A160: 159
A161: 160
A162: 161
A163: 162
A164: 163
A165: 164
A166: 165
A167: 166
A168: 167
A169: 168
A170: 169

Sheet M E 1
A1: BK 1 Männlich Erwachsen
A3: Platzierung | B3: Name | C3: M/W | D3: E/J/S | E3: BK | G3: Tag 1 | H3: Tag 2 | I3: Gesamt
A4: 1 | B4: Novotny Hans | C4: M | D4: E | E4: 1 | G4: 428 | H4: 260 | I4: =G4+H4 -> 688
A5: 2 | B5: Tempel Andreas | C5: M | D5: E | E5: 1 | G5: 358 | H5: 220 | I5: 578
A6: 3 | B6: Möbus Torsten | C6: M | D6: E | E6: 1 | G6: 406 | H6: 170 | I6: 576
A7: 4 | B7: Zander Heiko | C7: M | D7: E | E7: 1 | G7: 342 | H7: 210 | I7: 552
A8: 5 | B8: Kindinger Helmut | C8: M | D8: E | E8: 1 | G8: 302 | H8: 240 | I8: 542
A9: 6 | B9: Davis Franz | C9: M | D9: E | E9: 1 | G9: 306 | H9: 200 | I9: 506
A10: 7 | B10: Estor Stefan | C10: M | D10: E | E10: 1 | G10: 240 | H10: 170 | I10: 410
A11: 8 | B11: Zielke Mike | C11: M | D11: E | E11: 1 | G11: 252 | H11: 150 | I11: 402
A12: 9 | B12: Roith Michael | C12: M | D12: E | E12: 1 | G12: 204 | H12: 140 | I12: 344
A13: 10 | B13: Buchmeier Maik | C13: M | D13: E | E13: 1 | G13: 212 | H13: 80 | I13: 292
A14: 11 | B14: Bügenbug Uwe | C14: M | D14: E | E14: 1 | G14: 282 | H14: 0 | I14: 282
A15: 12 | B15: Jatho Robert | C15: M | D15: E | E15: 1 | G15: 0 | H15: 0 | I15: 0
A16: 13 | B16: Cuntz Andy | C16: M | D16: E | E16: 1 | G16: 0 | H16: 0 | I16: 0
M20: 87

Sheet W E 1
A1: BK 1 Weiblich Erwachsen
A3: Platzierung | B3: Name | C3: M/W | D3: E/J/S | E3: BK | G3: Tag 1 | H3: Tag 2 | I3: Gesamt
A4: 1
A5: 2 | B5: Harpain Sabrina | C5: W | D5: E | E5: 1 | G5: 0 | H5: 0 | I5: =G5+H5 -> 0

Sheet M J 1
A1: BK 1 Männlich Jugend
A3: Platzierung | B3: Name | C3: M/W | D3: E/J/S | E3: BK | G3: Tag 1 | H3: Tag 2 | I3: Gesamt
A4: 1 | B4: Estor Arne | C4: M | D4: J | E4: 1 | G4: 130 | H4: 90 | I4: =G4+H4 -> 220

Sheet W J 1
A1: BK 1 Weiblich Jugend
A3: Platzierung | B3: Name | C3: M/W | D3: E/J/S | E3: BK | G3: Tag 1 | H3: Tag 2 | I3: Gesamt

Sheet M S 1
A1: BK 1 Männlich Schüler
A3: Platzierung | B3: Name | C3: M/W | D3: E/J/S | E3: BK | G3: Tag 1 | H3: Tag 2 | I3: Gesamt

Sheet W S 1
A1: BK 1 Weiblich Schüler
A3: Platzierung | B3: Name | C3: M/W | D3: E/J/S | E3: BK | G3: Tag 1 | H3: Tag 2 | I3: Gesamt

Sheet M E 2
A1: BK 2 Männlich Erwachsen
A3: Platzierung | B3: Name | C3: M/W | D3: E/J/S | E3: BK | G3: Tag 1 | H3: Tag 2 | I3: Gesamt
A4: 1 | B4: Eggers Jan | C4: M | D4: E | E4: 2 | G4: 330 | H4: 270 | I4: =G4+H4 -> 600
A5: 2 | B5: Denysiuk Daniel | C5: M | D5: E | E5: 2 | G5: 324 | H5: 220 | I5: 544
A6: 3 | B6: Geimer Charly | C6: M | D6: E | E6: 2 | G6: 352 | H6: 180 | I6: 532
A7: 4 | B7: Schwan Robert | C7: M | D7: E | E7: 2 | G7: 304 | H7: 160 | I7: 464
A8: 5 | B8: Rogalewski Manfred | C8: M | D8: E | E8: 2 | G8: 256 | H8: 160 | I8: 416
A9: 6 | B9: Fasshauer Günther | C9: M | D9: E | E9: 2 | G9: 226 | H9: 190 | I9: 416
A10: 7 | B10: Herngreen Michael | C10: M | D10: E | E10: 2 | G10: 230 | H10: 130 | I10: 360
A11: 8 | B11: Kircher Kevin | C11: M | D11: E | E11: 2 | G11: 198 | H11: 110 | I11: 308
A12: 9 | B12: Klinken Thomas | C12: M | D12: E | E12: 2 | G12: 234 | H12: 60 | I12: 294
A13: 10 | B13: Meyer Herbert | C13: M | D13: E | E13: 2 | G13: 0 | H13: 0 | I13: 0
A14: 11 | B14: Harwarth Helmut | C14: M | D14: E | E14: 2 | G14: 0 | H14: 0 | I14: 0
A15: 12 | B15: Dietzenbach Arne | C15: M | D15: E | E15: 2 | G15: 0 | H15: 0 | I15: 0

Sheet W E 2
A1: BK 2 Weiblich Erwachsen
A3: Platzierung | B3: Name | C3: M/W | D3: E/J/S | E3: BK | G3: Tag 1 | H3: Tag 2 | I3: Gesamt
A4: 1 | B4: Krück Bärbel | C4: W | D4: E | E4: 2 | G4: 318 | H4: 210 | I4: =G4+H4 -> 528
A5: 2 | B5: Schmitt Mareike | C5: W | D5: E | E5: 1 | G5: 336 | H5: 160 | I5: 496
A6: 3 | B6: Kohler Sabine | C6: W | D6: E | E6: 2 | G6: 270 | H6: 200 | I6: 470
A7: 4 | B7: Friend Stephanie | C7: W | D7: E | E7: 2 | G7: 246 | H7: 190 | I7: 436
A8: 5 | B8: Thiel verona | C8: W | D8: E | E8: 2 | G8: 260 | H8: 100 | I8: 360
A9: 6 | B9: Adel Herta | C9: W | D9: E | E9: 2 | G9: 186 | H9: 120 | I9: 306
A10: 7 | B10: Voigt Bea | C10: W | D10: E | E10: 2 | G10: 206 | H10: 40 | I10: 246
A11: 8 | B11: Denysiuk Kristin | C11: W | D11: E | E11: 2 | G11: 140 | H11: 50 | I11: 190
A12: 9 | B12: Dirks Ute Éloise | C12: W | D12: E | E12: 2 | G12: 0 | H12: 0 | I12: 0
A13: 10 | B13: Dietzenbach Elke | C13: W | D13: E | E13: 2 | G13: 0 | H13: 0 | I13: 0

Sheet M J 2
A1: BK 2 Männlich Jugend
A3: Platzierung | B3: Name | C3: M/W | D3: E/J/S | E3: BK | G3: Tag 1 | H3: Tag 2 | I3: Gesamt

Sheet W J 2
A1: BK 2 Weiblich Jugend
A3: Platzierung | B3: Name | C3: M/W | D3: E/J/S | E3: BK | G3: Tag 1 | H3: Tag 2 | I3: Gesamt

Sheet M S 2
A1: BK 2 Männlich Schüler
A3: Platzierung | B3: Name | C3: M/W | D3: E/J/S | E3: BK | G3: Tag 1 | H3: Tag 2 | I3: Gesamt

Sheet W S 2
A1: BK 2 Weiblich Schüler
A3: Platzierung | B3: Name | C3: M/W | D3: E/J/S | E3: BK | G3: Tag 1 | H3: Tag 2 | I3: Gesamt

Sheet M E 3
A1: BK 3 Männlich Erwachsen
A3: Platzierung | B3: Name | C3: M/W | D3: E/J/S | E3: BK | G3: Tag 1 | H3: Tag 2 | I3: Gesamt
A4: 1 | B4: Albert Klaus | C4: M | D4: E | E4: 3 | G4: 434 | H4: 370 | I4: =G4+H4 -> 804
A5: 2 | B5: Frisch Andreas | C5: M | D5: E | E5: 3 | G5: 448 | H5: 320 | I5: 768
A6: 3 | B6: Reissmann Rainer | C6: M | D6: E | E6: 3 | G6: 454 | H6: 270 | I6: 724
A7: 4 | B7: Seibel Jürgen | C7: M | D7: E | E7: 3 | G7: 404 | H7: 320 | I7: 724
A8: 5 | B8: Eckardt Christian | C8: M | D8: E | E8: 3 | G8: 438 | H8: 270 | I8: 708
A9: 6 | B9: Kiene Ralf | C9: M | D9: E | E9: 3 | G9: 368 | H9: 300 | I9: 668
A10: 7 | B10: Hofmann Marcus | C10: M | D10: E | E10: 3 | G10: 390 | H10: 260 | I10: 650
A11: 8 | B11: Estl David | C11: M | D11: E | E11: 3 | G11: 370 | H11: 250 | I11: 620
A12: 9 | B12: Macklé Gerd | C12: M | D12: E | E12: 3 | G12: 414 | H12: 190 | I12: 604
A13: 10 | B13: Rauch Hartmut | C13: M | D13: E | E13: 3 | G13: 354 | H13: 250 | I13: 604
A14: 11 | B14: Christen Marco | C14: M | D14: E | E14: 3 | G14: 388 | H14: 200 | I14: 588
A15: 12 | B15: Jost Andreas | C15: M | D15: E | E15: 3 | G15: 338 | H15: 230 | I15: 568
A16: 13 | B16: Wiescher Roland | C16: M | D16: E | E16: 3 | G16: 380 | H16: 170 | I16: 550
A17: 14 | B17: Schneider Andreas | C17: M | D17: E | E17: 3 | G17: 322 | H17: 190 | I17: 512
A18: 15 | B18: Kiebusch Ralf | C18: M | D18: E | E18: 3 | G18: 278 | H18: 210 | I18: 488
A19: 16 | B19: Felber Wolfgang | C19: M | D19: E | E19: 3 | G19: 274 | H19: 200 | I19: 474
A20: 17 | B20: Külmer Jens | C20: M | D20: E | E20: 3 | G20: 296 | H20: 170 | I20: 466
A21: 18 | B21: Hey Roland | C21: M | D21: E | E21: 3 | G21: 340 | H21: 110 | I21: 450
A22: 19 | B22: Heß Thomas | C22: M | D22: E | E22: 3 | G22: 324 | H22: 120 | I22: 444
A23: 20 | B23: Gleiser Christian | C23: M | D23: E | E23: 3 | G23: 314 | H23: 130 | I23: 444
A24: 21 | B24: Neullens Andreas | C24: M | D24: E | E24: 3 | G24: 304 | H24: 0 | I24: 304
A25: 22 | B25: Bert Ralf | C25: M | D25: E | E25: 3 | G25: 264 | H25: 0 | I25: 264 | K25: Sontag nicht
A26: 23 | B26: Schreck Hans-Dieter | C26: M | D26: E | E26: 3 | G26: 258 | H26: 0 | I26: 258
A27: 24 | B27: Dryba Florian | C27: M | D27: E | E27: 3 | G27: 194 | H27: 60 | I27: 254
A28: 25 | B28: Zahn Wolfgang | C28: M | D28: E | E28: 3 | G28: 0 | H28: 0 | I28: 0
A29: 26 | B29: Diehl Uwe | C29: M | D29: E | E29: 3 | G29: 0 | H29: 0 | I29: 0
A30: 27 | B30: Holz Winfried | C30: M | D30: E | E30: 3 | G30: 0 | H30: 0 | I30: 0

Sheet W E 3
A1: BK 3 Weiblich Erwachsen
A3: Platzierung | B3: Name | C3: M/W | D3: E/J/S | E3: BK | G3: Tag 1 | H3: Tag 2 | I3: Gesamt
A4: 1 | B4: Christen Claudia | C4: W | D4: E | E4: 3 | G4: 374 | H4: 250 | I4: =G4+H4 -> 624
A5: 2 | B5: Beier-Wille Katrin | C5: W | D5: E | E5: 3 | G5: 360 | H5: 220 | I5: 580
A6: 3 | B6: Blum Sandra | C6: W | D6: E | E6: 3 | G6: 358 | H6: 210 | I6: 568
A7: 4 | B7: Eckardt Carola | C7: W | D7: E | E7: 3 | G7: 348 | H7: 210 | I7: 558
A8: 5 | B8: Klinken Christine | C8: W | D8: E | E8: 3 | G8: 268 | H8: 120 | I8: 388
A9: 6 | B9: Mädler Sindy | C9: W | D9: E | E9: 3 | G9: 256 | H9: 120 | I9: 376
A10: 7 | B10: Dryba Lea | C10: W | D10: E | E10: 3 | G10: 190 | H10: 100 | I10: 290
A11: 8 | B11: Schreck Lara Marie | C11: W | D11: E | E11: 3 | G11: 252 | H11: 0 | I11: 252
A12: 9 | B12: Felber Monika | C12: W | D12: E | E12: 3 | G12: 180 | H12: 0 | I12: 180
A13: 10 | B13: Tittl Stefanie | C13: W | D13: E | E13: 3 | G13: 86 | H13: 30 | I13: 116 | K13: Sonntag nicht
A14: 11 | B14: Estl Anja | C14: W | D14: E | E14: 3 | G14: 100 | H14: 0 | I14: 100
A15: 12 | B15: Ebel Manuela | C15: W | D15: E | E15: 3 | G15: 0 | H15: 0 | I15: 0
A16: 13 | B16: Kahl Stefanie | C16: W | D16: E | E16: 3 | G16: 0 | H16: 0 | I16: 0

Sheet M J 3
A1: BK 3 Männlich Jugend
A3: Platzierung | B3: Name | C3: M/W | D3: E/J/S | E3: BK | G3: Tag 1 | H3: Tag 2 | I3: Gesamt

Sheet W J 3
A1: BK 3 Weiblich Jugend
A3: Platzierung | B3: Name | C3: M/W | D3: E/J/S | E3: BK | G3: Tag 1 | H3: Tag 2 | I3: Gesamt
A4: 1 | B4: Klinken Ramona | C4: W | D4: J | E4: 3 | G4: 152 | H4: 110 | I4: =G4+H4 -> 262
A5: 2 | B5: Heß Alicia | C5: W | D5: J | E5: 3 | G5: 188 | H5: 0 | I5: =G5+H5 -> 188
A6: 3 | B6: Meinberg Jessica | C6: W | D6: J | E6: 3 | G6: 180 | H6: 0 | I6: =G6+H6 -> 180

Sheet M S 3
A1: BK 3 Männlich Schüler
A3: Platzierung | B3: Name | C3: M/W | D3: E/J/S | E3: BK | G3: Tag 1 | H3: Tag 2 | I3: Gesamt
A4: 1 | B4: Külmer Lasse | C4: M | D4: S | E4: 3 | G4: 384 | H4: 240 | I4: =G4+H4 -> 624
A5: 2 | B5: Kraus Finlay | C5: M | D5: S | E5: 3 | G5: 190 | H5: 170 | I5: =G5+H5 -> 360

Sheet W S 3
A1: BK 3 Weiblich Schüler
A3: Platzierung | B3: Name | C3: M/W | D3: E/J/S | E3: BK | G3: Tag 1 | H3: Tag 2 | I3: Gesamt
A4: 1 | B4: Christen Hanna | C4: W | D4: S | E4: 3 | G4: 330 | H4: 180 | I4: =G4+H4 -> 510
A5: 2 | B5: Estl Lilly | C5: W | D5: S | E5: 3 | G5: 306 | H5: 180 | I5: =G5+H5 -> 486
A6: 3 | B6: Leonie Theobald | C6: W | D6: S | E6: 3 | G6: 264 | H6: 150 | I6: =G6+H6 -> 414
A7: 4 | B7: Kraus Mara | C7: W | D7: S | E7: 3 | G7: 266 | H7: 120 | I7: =G7+H7 -> 386

Sheet M E 4
A1: BK 4 Männlich Erwachsen
A3: Platzierung | B3: Name | C3: M/W | D3: E/J/S | E3: BK | G3: Tag 1 | H3: Tag 2 | I3: Gesamt
A4: 1 | B4: Krause Gerald | C4: M | D4: E | E4: 4 | G4: 350 | H4: 250 | I4: =G4+H4 -> 600
A5: 2 | B5: Schackmann Norbert | C5: M | D5: E | E5: 4 | G5: 0 | H5: 0 | I5: =G5+H5 -> 0

Sheet W E 4
A1: BK 4 Weiblich Erwachsen
A3: Platzierung | B3: Name | C3: M/W | D3: E/J/S | E3: BK | G3: Tag 1 | H3: Tag 2 | I3: Gesamt
A4: 1 | B4: Kraus Anja | C4: W | D4: E | E4: 4 | G4: 362 | H4: 0 | I4: =G4+H4 -> 362
A5: 2 | B5: Seibel Gaby | C5: W | D5: E | E5: 4 | G5: 156 | H5: 0 | I5: =G5+H5 -> 156 | K5: Sonntag nicht
A6: 3 | B6: Klasen Silvia | C6: W | D6: E | E6: 4 | G6: 0 | H6: 0 | I6: =G6+H6 -> 0

Sheet M J 4
A1: BK 4 Männlich Jugend
A3: Platzierung | B3: Name | C3: M/W | D3: E/J/S | E3: BK | G3: Tag 1 | H3: Tag 2 | I3: Gesamt
A4: 1 | B4: Klinken Jannik | C4: M | D4: J | E4: 4 | G4: 418 | H4: 230 | I4: =G4+H4 -> 648
A5: 2 | B5: Christen Max | C5: M | D5: J | E5: 4 | G5: 344 | H5: 250 | I5: =G5+H5 -> 594

Sheet W J 4
A1: BK 4 Weiblich Jugend
A3: Platzierung | B3: Name | C3: M/W | D3: E/J/S | E3: BK | G3: Tag 1 | H3: Tag 2 | I3: Gesamt

Sheet M S 4
A1: BK 4 Männlich Schüler
A3: Platzierung | B3: Name | C3: M/W | D3: E/J/S | E3: BK | G3: Tag 1 | H3: Tag 2 | I3: Gesamt

Sheet W S 4
A1: BK 4 Weiblich Schüler
A3: Platzierung | B3: Name | C3: M/W | D3: E/J/S | E3: BK | G3: Tag 1 | H3: Tag 2 | I3: Gesamt
A4: 1 | B4: Kiene Fiona | C4: W | D4: S | E4: 4 | G4: 0 | H4: 0 | I4: =G4+H4 -> 0

Sheet M E 5
A1: BK 5 Männlich Erwachsen
A3: Platzierung | B3: Name | C3: M/W | D3: E/J/S | E3: BK | G3: Tag 1 | H3: Tag 2 | I3: Gesamt
A4: 1 | B4: Klasen Ralf | C4: M | D4: E | E4: 5 | G4: 0 | H4: 0 | I4: =G4+H4 -> 0

Sheet W E 5
A1: BK 5 Weiblich Erwachsen
A3: Platzierung | B3: Name | C3: M/W | D3: E/J/S | E3: BK | G3: Tag 1 | H3: Tag 2 | I3: Gesamt
A4: 1 | B4: Gernet Tamara | C4: W | D4: E | E4: 5 | G4: 308 | H4: 210 | I4: =G4+H4 -> 518

Sheet M J 5
A1: BK 5 Männlich Jugend
A3: Platzierung | B3: Name | C3: M/W | D3: E/J/S | E3: BK | G3: Tag 1 | H3: Tag 2 | I3: Gesamt

Sheet W J 5
A1: BK 5 Weiblich Jugend
A3: Platzierung | B3: Name | C3: M/W | D3: E/J/S | E3: BK | G3: Tag 1 | H3: Tag 2 | I3: Gesamt

Sheet M S 5
A1: BK 5 Männlich Schüler
A3: Platzierung | B3: Name | C3: M/W | D3: E/J/S | E3: BK | G3: Tag 1 | H3: Tag 2 | I3: Gesamt

Sheet W S 5
A1: BK 5 Weiblich Schüler
A3: Platzierung | B3: Name | C3: M/W | D3: E/J/S | E3: BK | G3: Tag 1 | H3: Tag 2 | I3: Gesamt

Sheet M E 6
A1: BK 6 Männlich Erwachsen
A3: Platzierung | B3: Name | C3: M/W | D3: E/J/S | E3: BK | G3: Tag 1 | H3: Tag 2 | I3: Gesamt
A4: 1 | B4: Demski Bernd | C4: M | D4: E | E4: 6 | G4: 534 | H4: 530 | I4: =G4+H4 -> 1064
A5: 2 | B5: Kümpfel Alfred | C5: M | D5: E | E5: 6 | G5: 514 | H5: 490 | I5: 1004
A6: 3 | B6: KrausThomas | C6: M | D6: E | E6: 6 | G6: 514 | H6: 450 | I6: 964
A7: 4 | B7: Rösch Frank | C7: M | D7: E | E7: 6 | G7: 500 | H7: 450 | I7: 950
A8: 5 | B8: Hebler David | C8: M | D8: E | E8: 6 | G8: 500 | H8: 380 | I8: 880
A9: 6 | B9: May Richard | C9: M | D9: E | E9: 6 | G9: 470 | H9: 400 | I9: 870
A10: 7 | B10: Weller Thomas | C10: M | D10: E | E10: 6 | G10: 460 | H10: 380 | I10: 840
A11: 8 | B11: Winkelmann Henry | C11: M | D11: E | E11: 6 | G11: 460 | H11: 350 | I11: 810
A12: 9 | B12: Beck Helmut | C12: M | D12: E | E12: 6 | G12: 464 | H12: 0 | I12: 464
A13: 10 | B13: Gies Martin | C13: M | D13: E | E13: 6 | G13: 0 | H13: 0 | I13: 390
A14: 11 | B14: Ebel Daniel | C14: M | D14: E | E14: 6 | G14: 0 | H14: 0 | I14: =G14+H14 -> 0
B15: Schreck Benjamin | C15: M | D15: E | E15: 6 | G15: 0 | H15: 0 | I15: =G15+H15 -> 0

Sheet W E 6
A1: BK 6 Weiblich Erwachsen
A3: Platzierung | B3: Name | C3: M/W | D3: E/J/S | E3: BK | G3: Tag 1 | H3: Tag 2 | I3: Gesamt
A4: 1 | B4: Demski Brigitte | C4: W | D4: E | E4: 6 | G4: 520 | H4: 490 | I4: =G4+H4 -> 1010
A5: 2 | B5: Müller Angelika | C5: W | D5: E | E5: 6 | G5: 0 | H5: 0 | I5: =G5+H5 -> 0

Sheet M J 6
A1: BK 6 Männlich Jugend
A3: Platzierung | B3: Name | C3: M/W | D3: E/J/S | E3: BK | G3: Tag 1 | H3: Tag 2 | I3: Gesamt
A4: 1 | B4: Bert Justin | C4: M | D4: J | E4: 6 | G4: 336 | H4: 0 | I4: =G4+H4 -> 336 | K4: Sonntag nicht

Sheet W J 6
A1: BK 6 Weiblich Jugend
A3: Platzierung | B3: Name | C3: M/W | D3: E/J/S | E3: BK | G3: Tag 1 | H3: Tag 2 | I3: Gesamt

Sheet M S 6
A1: BK 6 Männlich Schüler
A3: Platzierung | B3: Name | C3: M/W | D3: E/J/S | E3: BK | G3: Tag 1 | H3: Tag 2 | I3: Gesamt
A4: 1 | B4: Ebel Mathew | C4: M | D4: S | E4: 6 | G4: 0 | H4: 0 | I4: =G4+H4 -> 0

Sheet W S 6
A1: BK 6 Weiblich Schüler
A3: Platzierung | B3: Name | C3: M/W | D3: E/J/S | E3: BK | G3: Tag 1 | H3: Tag 2 | I3: Gesamt

Sheet Tabelle1
